Cogmind - Beta 16.1 @@@ ROGUE MODE // 2026.04.06 @ 01:18:09 Player: gamerman Result: Core destroyed Performance ------------- Evolutions (0) 0 Regions Visited (2) 400 Robots Destroyed (21) 105 Value Destroyed (487) 487 Prototype IDs (1) 20 Alien Tech Used (0) 0 Bonus (0) 0 TOTAL SCORE: 1012 Bonus ------- None Cogmind --------- Core Integrity 0/250 Matter 213/300 Energy 185/250 System Corruption 0% Temperature Critical (711) Movement Core (350) Ox6 Location -10/Mines Parts ------- > --- POWER (1) -------- Ion Engine > --- PROPULSION (2) --- (None) > --- UTILITY (2) ------ Small Storage Unit Light Armor Plating > --- WEAPON (2) ------- Advanced Beam Cannon Advanced Beam Cannon > --- INVENTORY (8) ---- Light Nuclear Core Heat Sink Light Armor Plating Light Armor Plating Light Armor Plating Heavy EM Pulse Gun Advanced Beam Cannon Peak State ------------ > --- POWER ------------ Ion Engine > --- PROPULSION ------- Wheel Wheel > --- UTILITY ---------- Small Storage Unit Visual Processing Unit > --- WEAPON ----------- Advanced Beam Cannon Advanced Beam Cannon > --- INVENTORY -------- Light Ion Engine Flight Unit Flight Unit Flight Unit Heavy EM Pulse Gun Heavy EM Pulse Gun Advanced Beam Cannon [Rating: 13] Favorites ----------- Power Ion Engine Engine Ion Engine Propulsion Wheel Treads Light Treads Wheel Wheel Utility Small Storage Unit Storage Small Storage Unit Processor Visual Processing Unit Protection Light Armor Plating Weapon Advanced Beam Cannon Energy Gun Heavy EM Pulse Gun Energy Cannon Advanced Beam Cannon Build | -11 -10 -10 ------- Run | Yrd Mat Min Slots Evolved . | . . . Power . | . . . Propulsion . | . . . Utility . | . . . Weapon . | . . . Parts Attached 16 | 7 7 2 Power 2 | 1 . 1 Engine 2 | 1 . 1 Core . | . . . Reactor . | . . . Propulsion 3 | 2 1 . Treads 1 | . 1 . Leg . | . . . Wheel 2 | 2 . . Hover . | . . . Flight . | . . . Utility 4 | 1 2 1 Device . | . . . Storage 1 | 1 . . Processor 1 | . 1 . Hackware . | . . . Protection 2 | . 1 1 Artifact . | . . . Weapon 7 | 3 4 . Energy Gun 5 | 3 2 . Energy Cannon 2 | . 2 . Ballistic Gun . | . . . Ballistic Cannon . | . . . Launcher . | . . . Special Weapon . | . . . Impact Weapon . | . . . Slashing Weapon . | . . . Piercing Weapon . | . . . Special Melee Weapon . | . . . Unidentified Prototypes 1 | . 1 . Parts Lost 3 | . . 3 Power . | . . . Propulsion 2 | . . 2 Utility 1 | . . 1 Weapon . | . . . Highest Loss Streak 3 | . . 3 To Critical Strikes . | . . . Average Backups 7 | . 6 7 Power 1 | . 1 1 Propulsion . | . 1 . Utility 2 | . . 4 Weapon 2 | . 2 2 Tool/Special . | . . . Unused Backups 12 | . 3 9 Power 2 | . . 2 Propulsion 3 | . 3 . Utility 4 | . . 4 Weapon 3 | . . 3 Tool/Special . | . . . Average Slot Usage (%) 95 | . 88 98 Engine 14 | . 14 14 Treads 9 | . 2 13 Wheel 17 | . 25 13 Storage 14 | . 14 14 Protection 9 | . 2 14 Energy Gun 5 | . 16 . Energy Cannon 21 | . 11 28 Peak Build Rating 13 | 6 13 12 Average Rating 10 | 4 9 11 On Entrance 6 | . 6 12 Avg Prop Armor Cover (%) 7 | . 4 7 Naked Turns . | . . . Heaviest Build 21 | 14 21 21 Greatest Support 20 | 20 20 20 Greatest Overweight (x) 6 | 1 2 6 Average Overweight (x) 1 | . . 1 Largest Inventory Capacity 8 | 8 8 8 Average Capacity 7 | 7 8 8 Most Carried 8 | 2 8 8 Average Carried 7 | 1 6 7 Final Capacity 8 | 8 8 8 Final Carried 8 | 2 8 7 Class Distribution -------------------- 100% | Mutant Dominant Class ---------------- Mutant | -10/Materials Mutant | -10/Mines Resources | -11 -10 -10 ----------- Run | Yrd Mat Min Matter Collected 435 | 173 128 134 Remotely . | . . . Salvage Created 739 | . 527 212 Parts 31 | . 22 9 Haulers Intercepted 2 | . 2 . Recyclers Shooed . | . . . Parts Field Recycled . | . . . Retrieved Matter . | . . . Parts Self-Destructed . | . . . Prevented . | . . . Parts Restored . | . . . Kills | -11 -10 -10 ------- Run | Yrd Mat Min Combat Hostiles Destroyed 14 | . 7 7 Guns 4 | . 4 . Cannons 6 | . . 6 AOE 3 | . 3 . Classes Destroyed 7 | . 7 . Worker 1 | . 1 . Hauler 2 | . 2 . Recycler 1 | . 1 . Operator 1 | . 1 . Watcher 2 | . 2 . Swarmer 5 | . 2 3 Grunt 9 | . 5 4 Best Kill Streak 6 | . 6 3 Combat Bots Only 4 | . 4 3 Max Kills in Single Turn 1 | . 1 1 Gunslinging . | . . . Exploded 1 | . 1 . Melee . | . . . Uniques/NPCs Destroyed . | . . . Combat | -11 -10 -10 -------- Run | Yrd Mat Min Hostile Shots Fired 56 | . 25 31 Missed 14 | . 7 7 Hits 42 | . 18 24 Projectile 42 | . 18 24 Damage Taken 587 | . 197 390 Core 251 | . 82 169 Absorbed by Shields . | . . . Core Remaining (%) 100 | 100 . . Volleys Fired 58 | . 34 24 Largest 2 | . 2 2 Hottest 136 | . 136 136 Shots Fired 116 | . 68 48 Gun 52 | . 52 . Cannon 64 | . 16 48 Launcher . | . . . Special . | . . . Kinetic . | . . . Thermal 64 | . 16 48 Explosive . | . . . Electromagnetic 52 | . 52 . Robot Hit Streak 8 | . 8 6 Robot Miss Streak 5 | . 5 2 Penetration Max . | . . . Secondary Targets 1 | . 1 . Max Gunslinging Chain 1 | . 1 . Shots Hit Robots 61 | . 33 28 Core Hits 23 | . 16 7 Critical Kills 1 | . . 1 Critical Parts Destroyed . | . . . Critical Strikes 1 | . . 1 Meltdown 1 | . . 1 Melee Attacks . | . . . Impact . | . . . Slashing . | . . . Piercing . | . . . Sneak Attacks . | . . . Combat Hostiles . | . . . Follow-up Attacks . | . . . Damage Inflicted 1436 | . 860 576 Guns 390 | . 390 . Cannons 822 | . 246 576 Explosions 224 | . 224 . Melee . | . . . Ramming . | . . . Kinetic . | . . . Thermal 1026 | . 450 576 Explosive . | . . . Electromagnetic 410 | . 410 . Impact . | . . . Slashing . | . . . Piercing . | . . . Highest Corruption . | . . . Average Corruption . | . . . Corruption Purged . | . . . Corruption Blocked . | . . . Overload Shots . | . . . Overflow Damage 28 | . 26 2 Projectiles 7 | . 5 2 Explosions 21 | . 21 . Melee . | . . . Knockbacks . | . . . Impact . | . . . Kinetic . | . . . Secondary . | . . . Self-Inflicted Damage 37 | . 37 . Shots 1 | . 1 . Rammed . | . . . Targets Rammed . | . . . Kicked . | . . . Crushed . | . . . Highest Temperature 877 | . 450 877 Average Temperature 221 | . 135 321 Received Heat Transfer 138 | . 18 120 Effects 35 | . 6 29 Shutdowns 7 | . 1 6 Energy Bleed 5 | . 1 4 Interference 1 | . . 1 Matter Decay 4 | . . 4 Short Circuit 1 | . . 1 Damage (minor) 5 | . 1 4 Damage (major) 9 | . 3 6 Damage (core) 3 | . . 3 Siege Activations . | . . . Martial Activations . | . . . Shielding Activations . | . . . Robots Disrupted . | . . . Combat Hostiles . | . . . Robots Corrupted 1 | . 1 . Combat Hostiles . | . . . Parts Fried 5 | . 5 . Impact Corruptions . | . . . Robots Melted 1 | . . 1 Combat Hostiles 1 | . . 1 Parts Melted 2 | . . 2 Heat Transferred 1730 | . 694 1036 Parts Sabotaged . | . . . Parts Stolen . | . . . Parts Stripped . | . . . Power Chain Reactions 4 | . 4 . Alert | -11 -10 -10 ------- Run | Yrd Mat Min Maximum Alert Level . | . . . Low Security (%) 100 | 100 100 100 Level 1 . | . . . Level 2 . | . . . Level 3 . | . . . Level 4 . | . . . Level 5 . | . . . High Security . | . . . Max Security . | . . . Peak Influence 172 | . 172 70 Initial 40 | . . 40 Average 39 | . 83 16 Influence Increases 446 | . 276 170 Destroy 0b10 Robot/C 280 | . 140 140 Destroy 0b10 Robot/NC 35 | . 35 . Destroy Leader 78 | . 48 30 Successful Hack 12 | . 12 . Disable Machine 30 | . 30 . Destroy Structure 11 | . 11 . Influence Decreases 414 | . 170 244 Entered New Map 66 | . . 66 Time Decay 338 | . 170 168 Lost Part 10 | . . 10 Squads Dispatched 2 | . 2 . Investigation 1 | . 1 . Extermination . | . . . Reinforcement 1 | . 1 . Assault . | . . . Garrison . | . . . Intercept . | . . . Searches Triggered . | . . . Construction Impeded . | . . . Haulers Reinforced . | . . . Active Scanning Responses . | . . . Cargo Convoy Interrupts . | . . . Stealth | -11 -10 -10 --------- Run | Yrd Mat Min Distress Signals 2 | . 2 . Communications Jammed . | . . . Distress Signals . | . . . Times Spotted 17 | . 10 7 Peak Tracking Total 4 | . 4 3 Tactical Retreats . | . . . Traps | -11 -10 -10 ------- Run | Yrd Mat Min Traps Triggered 1 | . 1 . Indirectly . | . . . Trap Hack Attempts . | . . . Triggered . | . . . Disarmed . | . . . Reprogrammed . | . . . Reused . | . . . Traps Extracted . | . . . Installed . | . . . Triggered . | . . . Machines | -11 -10 -10 ---------- Run | Yrd Mat Min Machines Disabled 2 | . 2 . Max in Single Turn 2 | . 2 . Machines Repaired . | . . . Machines Dismantled . | . . . Machines Sabotaged . | . . . Overloaded Fab Kills . | . . . Hacking | -11 -10 -10 --------- Run | Yrd Mat Min Machines Accessed 4 | . 4 . Terminals 3 | . 3 . Fabricators . | . . . Repair Stations 1 | . 1 . Recycling Units . | . . . Scanalyzers . | . . . Garrison Access . | . . . Total Hacks 14 | . 14 . Successful 5 | . 5 . Failed 9 | . 9 . Catastrophic 2 | . 2 . Database Lockouts . | . . . Manual 13 | . 13 . Terminals 13 | . 13 . Fabricators . | . . . Repair Stations 1 | . 1 . Recycling Units . | . . . Scanalyzers . | . . . Garrison Access . | . . . Terminal Hacks 1 | . 1 . Terminal Index 1 | . 1 . Fabricator Hacks . | . . . Repair Station Hacks . | . . . Recycling Unit Hacks . | . . . Scanalyzer . | . . . Garrison Access Hacks . | . . . Unauthorized Hacks 4 | . 4 . Terminals 4 | . 4 . Botnet 3 | . 3 . Operators 1 | . 1 . Fabricators . | . . . Repair Stations . | . . . Recycling Units . | . . . Scanalyzers . | . . . Garrison Access . | . . . Data Cores Recovered . | . . . Used . | . . . Hacking Detections 4 | . 4 . Full Trace Events . | . . . Feedback Events . | . . . Feedback Blocked . | . . . Robot Schematics Acquired . | . . . Robots Built . | . . . Authchips . | . . . Time . | . . . Total Robot Build Rating . | . . . Part Schematics Acquired . | . . . Parts Built . | . . . Authchips . | . . . Time . | . . . Total Part Build Rating . | . . . Part Studies Acquired . | . . . Parts Repaired . | . . . Time . | . . . Parts Recycled . | . . . Recycled Matter . | . . . Retrieved Matter . | . . . Retrieved Components . | . . . Parts Scanalyzed . | . . . Part Schematics Acquired . | . . . Parts Damaged . | . . . Bothacking | -11 -10 -10 ------------ Run | Yrd Mat Min Used RIF Installer . | . . . Robots Hacked . | . . . Non-combat . | . . . Combat . | . . . Robot Hacks Applied . | . . . Relay Couplers Released . | . . . Fabnet Peak Effective % . | . . . Robots Rewired . | . . . Allies Hacked . | . . . Hacks Repelled . | . . . Allies | -11 -10 -10 -------- Run | Yrd Mat Min Total Allies . | . . . Largest Group . | . . . Highest-Rated Group . | . . . Highest-Rated Ally . | . . . Total Orders . | . . . Ally Attacks . | . . . Total Damage . | . . . Kills . | . . . Allies Corrupted . | . . . Allies Melted . | . . . Intel | -11 -10 -10 ------- Run | Yrd Mat Min Active Infowar (turns) 23 | . 23 . Optics 23 | . 23 . Robot Analysis Total . | . . . Derelict Logs Recovered . | . . . Drone Launches . | . . . Drone Recoveries . | . . . Exploration | -11 -10 -10 ------------- Run | Yrd Mat Min Turns Passed 1082 | 40 379 663 Spaces Moved 641 | 35 247 359 Core 7 | 4 . 3 Treads 120 | . 29 91 Legs . | . . . Wheels 514 | 31 218 265 Hover . | . . . Flight . | . . . Fastest Speed 50 | 50 80 110 Average Speed 123 | 80 98 144 Slowest Speed 350 | 100 240 350 Overloaded Moves . | . . . Propulsion Burnouts . | . . . Robots Hopped . | . . . Potential Cave-ins . | . . . Cave-ins Triggered . | . . . Exploration Rate (%) 37 | 3 51 57 Regions Visited 2 Branch Regions 1 Pre-discovered Areas . | . . . Known Exits Taken . | . . . Unknown Exits Taken 2 | 1 1 . Scrap Searched 1 | . . 1 Spaces Dug . | . . . Terrain Destroyed 9 | . 9 . Melee . | . . . Projectile . | . . . AOE 9 | . 9 . Terrain Rammed . | . . . Walls Destroyed . | . . . Machines Disabled . | . . . Actions | -11 -10 -10 --------- Run | Yrd Mat Min Total 817 | 43 316 458 Wait 77 | . 9 68 Move 639 | 34 246 359 Hop . | . . . Pick Up 13 | 1 10 2 Fast Attach 14 | 7 7 . Attach 1 | . . 1 Detach 1 | 1 . . Swap 1 | . . 1 Drop 13 | . 10 3 Fire 58 | . 34 24 Melee . | . . . Ram . | . . . Kick . | . . . Crush . | . . . Escape Stasis . | . . . Rewire . | . . . Trap . | . . . Miscellaneous . | . . . Route ------- -11/Scrapyard -10/Materials (discovered 2 exits: [*Mat] / [*Min]) -10/Mines History --------- Turn | Location | Event 23 | -11/Scrapyard | Discovered new exit (range 15) 41 | -11/Scrapyard | Entered Materials 223 | -10/Materials | Discovered new exit (range 12) 314 | -10/Materials | Build established: Mutant 396 | -10/Materials | Discovered new exit (range 11) 420 | -10/Materials | Entered Mines 421 | -10/Mines | Met a Derelict bent on vengeance 1057 | -10/Mines | Core integrity fell below 50% 1069 | -10/Mines | Core integrity fell below 20% 1084 | -10/Mines | Core destroyed Last Messages --------------- 01068_ Overheating: Energy bleed (-21). 01069_ Power failure, Ion Engine shutdown. 01069_ Overheating: Core damaged (-47). 01071_ Overheating: Ion Engine damaged (-3). 01073_ Overheating: Matter decay (-44). 01073_ G-47 Trooper destroyed. 01074_ Overheating: Matter decay (-15). 01075_ Adv. Beam Cannon broken. 01075_ Overheating: Short circuit. 01076_ Overheating: System interference. 01076_ Adv. Beam Cannon temporarily disabled. 01076_ Acquired 39 matter. 01077_ Power failure, Ion Engine shutdown. 01078_ Overheating: Adv. Beam Cannon damaged (-59). 01078_ Overheating: Ion Engine damaged (-2). 01080_ Acquired 46 matter. 01081_ Overheating: Energy bleed (-33). 01084_ Power failure, Ion Engine shutdown. 01084_ Overheating: Core damaged (-47). Map ----- +----------------------------------------------------+ | | | | | | | | | | | | | | | | | | | | | | | ??????????????????????????????????????????????? | | ??????????????????????????????????????????????? | | ??????????????????????????????????????????????? | | ??????????????????????????????????????????????? | | ??????????????????????????????????????????????? | | ??????????????????????????????????????????????? | | ??????????????????########????????????????????? | | ????????????????? #????????????????????? | | ????????????????# #????????????????????? | | ????????????????# #????????????????????? | | ????????????????# """ #????????????????????? | | ?????????????????? """ #??####??????????????? | | ????????????????????"" ???# ???????????????? | | ?????????????????????# #????# #???????????????? | | ?????????????????????#@###### #???????????????? | | ?????????????????????# #???????????????? | | ?????????????????????######## #???????????????? | | ????????????????????????????# #???????????????? | | ????????????????????????????# #???????????????? | | ????????????????????????????# #??#####????????? | | ????????????????????????????# #?## ##???????? | | ????????????????????????????# ### #???????? | | ????????????????????????????# #???????? | | ????????????????????????????# #???????? | | ????????????????????????????##### ### #???? | | ??????????????####??????????????## #???? | | ????????????### ##?????????????## #???? | | ???????????## ##?????????#### ######???? | | ??????????## ####?????## ##??????# | | ??????????# ##???## ###???## | | ??????????# ##??# ##?## | | ??????????## #??# ### | | ???????????## #??# | | ????????????#### #??# | | ???????????????## #### ### ### | | ????????????????# ## ##??###??## | | ????????????????# ####???????????#? | | ????????????????## ## ################## | | ?????????????????########## ##?# *[ | +----------------------------------------------------+ Best States ------------- Heat Dissipation 25 Energy Generation 10 Energy Capacity 250 Matter Stores 300 Matter Capacity 300 Sight Range 18 Terrain Scan Density 10 Armor Coverage 150 Evasion (%) 44 Recoil Reduction 1 Item Schematics ----------------- None Robot Schematics ------------------ None Fabricated ------------ Nothing Repaired ---------- Nothing Studied --------- None Alien Tech Used ----------------- None Achievements -------------- None Challenges ------------ None Game ------ Seed ClaymoresCentriumHoverbase Manual? 0 Play Time 00:11:28 Cumulative 34.2 hours Start 2026.04.06 @ 00:50:49 End 2026.04.06 @ 01:18:09 Sessions 1 Manual Loads 0 Difficulty Rogue Special Mode None Game No. 43 Rogue 43 Adventurer 0 Explorer 0 Win Type - Total 1 Types 1/0/0/0/0/0/0/0/0/0 Lore% 33 Gallery% 30 Achievement% 26 Wizard Run 0 Options --------- Layout 1 ASCII 0 Keyboard 0 Movement Vi Keybinds 0 Fullscreen 1 Font 24/Smallcaps Map View 50x40 Zoom Use 0% Tactical HUD 1 Map Filters NONE Filters NONE Steam 1 RUN: 5c42201f-9ce7-4b9d-915b-dbb69b1d260d